bitfinex/quotes_SOLUSD_20250806
["timestamp","ask_amount","ask_price","bid_price","bid_amount"]
[1754467412282,4.76983039,164.42,164.41,8.39163644]
[1754467413277,4.08983039,164.42,164.41,14.47399152]
[1754467415458,4.76983039,164.42,164.41,14.47399152]
[1754467416279,4.76983039,164.42,164.41,6.14235508]
[1754467416495,39.10146683,164.42,164.41,0.06]
[1754467416664,52.57299229,164.42,164.41,0.06]
[1754467416985,68.66310283,164.42,164.39,6.14307825]
[1754467417152,18.21750234,164.41,164.39,6.14307825]
[1754467417355,4.08983038,164.4,164.39,0.06]
[1754467417570,4.76983038,164.4,164.39,0.06]
[1754467417780,4.08983038,164.4,164.39,8.39163644]
[1754467418113,4.08983038,164.4,164.39,9.10163644]
[1754467418266,21.20000001,164.42,164.41,8.33163644]
[1754467418595,1e-08,164.42,164.41,9.04163644]
[1754467419586,1e-08,164.42,164.41,15.12399152]
[1754467420608,1e-08,164.43,164.41,15.12399152]
[1754467420769,1e-08,164.43,164.42,8.33163644]
[1754467420971,1e-08,164.43,164.42,9.04163644]
[1754467421481,1e-08,164.43,164.42,15.12362159]
[1754467422019,1e-08,164.44,164.42,15.12362159]
[1754467422172,1e-08,164.44,164.43,9.04163644]
[1754467423878,1e-08,164.44,164.43,15.12325171]
[1754467428523,0.68000001,164.44,164.43,14.41325171]
[1754467431032,1e-08,164.44,164.43,14.41325171]
[1754467433949,0.68000001,164.44,164.43,14.41325171]
[1754467434448,0.68000001,164.44,164.43,6.08161527]
[1754467434620,0.68000001,164.44,164.43,14.41325171]
[1754467435838,1e-08,164.44,164.43,14.41325171]
[1754467436335,1e-08,164.44,164.43,14.47325171]
[1754467436513,1e-08,164.44,164.43,15.13325171]
[1754467437315,1e-08,164.44,164.43,14.47325171]
[1754467439617,1e-08,164.44,164.43,15.13325171]
[1754467440721,1e-08,164.44,164.43,97.3332517]
[1754467442136,1e-08,164.46,164.43,112.53728989]
[1754467442339,1e-08,164.46,164.45,8.33163644]
[1754467442926,0.71000001,164.46,164.45,8.33163644]
[1754467444035,0.71000001,164.46,164.45,14.41251208]
[1754467444355,1e-08,164.46,164.45,14.41251208]
[1754467447946,1e-08,164.46,164.45,96.61251207]
[1754467448241,0.71000001,164.46,164.45,96.61251207]
[1754467450253,1e-08,164.46,164.45,96.61251207]
[1754467451943,0.71000001,164.46,164.45,96.61251207]
[1754467452356,1e-08,164.46,164.45,96.61251207]
[1754467454854,0.71000001,164.46,164.45,96.61251207]
[1754467457160,1e-08,164.46,164.45,97.27251207]
[1754467457349,1e-08,164.47,164.45,97.27251207]
[1754467457551,1e-08,164.47,164.46,30.19163644]
[1754467458658,1e-08,164.47,164.46,35.61214233]
[1754467458857,1e-08,164.47,164.46,36.27214233]
[1754467460054,0.1,164.5,164.46,118.47214232]
[1754467460233,0.1,164.5,164.49,8.33163644]
[1754467460644,0.1,164.5,164.49,8.99163644]
[1754467460850,0.1,164.5,164.49,15.07103336]
[1754467461047,0.1,164.53,164.49,30.26952566]
[1754467461244,0.1,164.53,164.52,8.33163644]
[1754467463047,0.81,164.53,164.52,14.40992479]
[1754467463451,0.1,164.53,164.52,14.40992479]
[1754467465665,0.1,164.53,164.52,96.60992478]
[1754467466358,0.1,164.53,164.52,97.29992478]
[1754467468868,1e-08,164.53,164.52,97.29992478]
[1754467469850,1e-08,164.53,164.52,118.47992478]
[1754467470057,1e-08,164.53,164.45,30.40383059]
[1754467470058,0.71000001,164.53,164.45,30.40383059]
[1754467470269,0.71000001,164.53,164.52,8.33163644]
[1754467470469,0.71000001,164.53,164.52,14.40992479]
[1754467471048,0.71000001,164.53,164.52,8.33163644]
[1754467471872,0.71000001,164.53,164.51,8.33163644]
[1754467472777,0.71000001,164.53,164.5,8.33163644]
[1754467473149,1e-08,164.53,164.51,8.33163644]
[1754467474580,1e-08,164.53,164.52,8.33163644]
[1754467474764,1e-08,164.53,164.52,14.40992479]
[1754467476863,1e-08,164.53,164.52,15.09992479]
[1754467479779,1e-08,164.53,164.52,15.15992479]
[1754467480385,1e-08,164.54,164.52,15.15992479]
[1754467480564,1e-08,164.54,164.53,9.02163644]
[1754467480760,1e-08,164.55,164.53,30.22163644]
[1754467480997,1e-08,164.55,164.54,8.33163644]
[1754467481283,1e-08,164.55,164.54,9.02163644]
[1754467482273,1e-08,164.55,164.54,15.09918597]
[1754467485163,0.1,164.57,164.54,30.2930598]
[1754467485365,0.1,164.57,164.56,8.33163644]
[1754467485792,0.1,164.57,164.56,9.02163644]
[1754467486289,0.71,164.62,164.56,45.32785201]
[1754467486490,0.71,164.62,164.61,8.33163644]
[1754467487082,0.71,164.62,164.61,14.4066015]
[1754467488002,0.71,164.62,164.6,8.33163644]
[1754467488189,0.71,164.62,164.61,8.33163644]
[1754467489101,0.71,164.62,164.61,14.4066015]
[1754467491689,26.0,164.65,164.61,14.4066015]
[1754467491690,0.71,164.64,164.61,14.4066015]
[1754467491896,0.71,164.64,164.62,8.33163644]
[1754467492714,0.71,164.64,164.61,82.19999999]
[1754467492892,4.78044358,164.64,164.61,82.19999999]
[1754467493094,4.78044358,164.64,164.61,88.27494446]
[1754467493285,0.71,164.63,164.61,96.6065809]
[1754467493597,26.0,164.65,164.62,8.33163644]
[1754467493598,0.71,164.65,164.62,8.33163644]
[1754467493804,0.71,164.64,164.63,8.33163644]
[1754467494180,0.71,164.64,164.62,8.33163644]
[1754467494584,0.71,164.64,164.63,6.07422705]
[1754467496901,0.68,164.64,164.63,6.07422705]
[1754467498176,0.68,164.64,164.63,88.27422704]
[1754467499302,0.68,164.64,164.63,82.19999999]
[1754467500782,9.01163644,164.64,164.58,82.19999999]
[1754467501012,8.33163644,164.62,164.59,6.07556847]
[1754467501212,0.68,164.61,164.59,6.07556847]
[1754467503530,8.33163644,164.63,164.59,6.07556847]
[1754467503687,0.68,164.62,164.59,14.40720491]
[1754467503887,0.68,164.61,164.59,14.40720491]
[1754467504087,0.68,164.61,164.59,96.6072049]
[1754467504502,0.68,164.61,164.59,88.27556846]
[1754467504704,0.68,164.6,164.59,82.19999999]
[1754467504895,0.68,164.6,164.59,88.27570325]
[1754467505193,0.68,164.62,164.59,88.27570325]
[1754467505392,4.75837404,164.62,164.59,88.27570325]
[1754467505916,4.07837404,164.62,164.6,0.69]
[1754467506218,4.07837404,164.62,164.61,6.07496506]
[1754467506916,0.03,164.64,164.61,15.0966015]
[1754467507120,0.03,164.64,164.63,8.33163644]
[1754467507499,0.03,164.64,164.63,9.02163644]
[1754467507918,0.03,164.64,164.63,8.33163644]
[1754467508120,0.03,164.64,164.63,9.02163644]
[1754467508421,0.03,164.64,164.63,15.09586349]
[1754467510324,1e-08,164.64,164.63,36.27586349]
[1754467513330,1e-08,164.64,164.63,15.09586349]
[1754467513517,1e-08,164.64,164.63,35.58586349]
[1754467515153,1e-08,164.64,164.63,36.27586349]
[1754467516027,1e-08,164.64,164.63,118.47586348]
[1754467517413,1e-08,164.64,164.63,133.58207905]
[1754467517634,1e-08,164.64,164.63,118.47586348]
[1754467517831,1e-08,164.64,164.63,110.14422704]
[1754467518010,1e-08,164.64,164.63,118.47586348]
[1754467518634,1e-08,164.64,164.63,117.78586348]
[1754467518824,0.68000001,164.64,164.63,96.60586348]
[1754467519022,0.68000001,164.64,164.63,88.27422704]
[1754467519826,1e-08,164.64,164.63,96.60586348]
[1754467520453,1e-08,164.64,164.63,88.27422704]
[1754467520659,1e-08,164.64,164.63,96.60586348]
[1754467520958,1e-08,164.64,164.63,97.29586348]
[1754467522058,1e-08,164.64,164.63,119.12328618]
[1754467522344,1e-08,164.64,164.63,134.22950175]
[1754467522647,1e-08,164.64,164.63,133.62207905]
[1754467523149,1e-08,164.64,164.63,118.51586348]
[1754467523320,1e-08,164.64,164.63,133.62207905]
[1754467523514,1e-08,164.64,164.63,132.93207905]
[1754467523746,1e-08,164.64,164.63,117.82586348]
[1754467524040,1e-08,164.64,164.63,117.88586348]
[1754467524343,0.68000001,164.64,164.63,117.88586348]
[1754467524847,0.68000001,164.64,164.63,96.66586348]
[1754467525154,1e-08,164.64,164.63,96.66586348]
[1754467525449,0.68000001,164.64,164.63,96.66586348]
[1754467527854,0.68000001,164.64,164.63,88.33422704]
[1754467528029,0.68000001,164.64,164.63,96.66586348]
[1754467528919,4.75746565,164.64,164.63,96.66586348]
[1754467529249,0.68000001,164.64,164.63,96.66586348]
[1754467530341,0.68000001,164.64,164.63,90.59163643]
[1754467530546,4.76969845,164.64,164.63,0.06]
[1754467530945,13.10133489,164.64,164.63,0.06]
[1754467531133,19.175193,164.64,164.63,0.06]
[1754467532524,34.28140857,164.64,164.63,0.06]
[1754467532725,41.10621557,164.62,164.61,0.06]
[1754467532924,53.52755045,164.62,164.61,0.06]
[1754467533223,54.24755045,164.62,164.61,0.06]
[1754467534060,69.4082539,164.62,164.53,108.83465391]
[1754467534261,8.33163644,164.55,164.53,108.83465391]
[1754467534477,0.72,164.55,164.53,114.91244238]
[1754467534773,12.42133488,164.57,164.53,114.91244238]
[1754467534935,13.14133488,164.56,164.53,114.91244238]
[1754467535135,4.08969844,164.55,164.53,114.91244238]
[1754467535360,9.05163644,164.56,164.53,114.91244238]
[1754467536033,4.08487552,164.57,164.54,0.72]
[1754467536466,4.08487552,164.57,164.53,114.91244238]
[1754467536467,9.05163644,164.56,164.53,114.91244238]
[1754467536658,9.05163644,164.55,164.53,114.91250302]
[1754467536868,0.72,164.55,164.53,114.91250302]
[1754467537437,13.13651196,164.57,164.53,114.91250302]
[1754467537649,9.05163644,164.56,164.53,114.91250302]
[1754467538171,0.72,164.55,164.53,114.91250302]
[1754467538554,8.33163644,164.56,164.53,114.91250302]
[1754467538749,8.33163644,164.56,164.53,115.63250302]
[1754467539065,13.13651196,164.57,164.53,115.63250302]
[1754467539743,0.72,164.56,164.53,115.63250302]
[1754467541060,0.72,164.56,164.53,114.91250302]
[1754467541270,9.05163644,164.56,164.53,114.91250302]
[1754467541868,0.72,164.55,164.53,108.83465391]
[1754467542045,8.33163644,164.56,164.53,108.83465391]
[1754467542356,0.72,164.55,164.53,108.83465391]
[1754467542673,0.72,164.55,164.53,114.91255156]
[1754467543244,21.24,164.58,164.54,9.05163644]
[1754467543554,21.24,164.58,164.55,9.05163644]
[1754467544260,21.96,164.58,164.55,9.05163644]
[1754467545376,21.96,164.58,164.55,15.12847986]
[1754467545959,21.96,164.58,164.55,6.07684342]
[1754467549977,30.29163644,164.58,164.55,6.07684342]
[1754467550191,0.72,164.57,164.55,6.07684342]
[1754467550890,21.24,164.58,164.55,6.07684342]
[1754467551384,21.96,164.58,164.55,6.07684342]
[1754467551558,0.72,164.57,164.55,6.07684342]
[1754467552398,21.24,164.58,164.55,15.12847986]
[1754467553061,21.96,164.58,164.55,15.12847986]
[1754467553374,21.24,164.58,164.55,6.07684342]
[1754467553576,8.33163644,164.56,164.54,82.19999999]
[1754467553898,0.72,164.56,164.54,88.2775012]
[1754467554914,0.72,164.55,164.54,82.19999999]
[1754467555900,9.05163644,164.55,164.54,82.19999999]
[1754467556576,0.72,164.55,164.54,82.19999999]
[1754467556993,0.72,164.55,164.54,88.27754952]
[1754467557408,0.72,164.55,164.54,6.07754953]
[1754467557573,0.72,164.55,164.53,114.91241996]
[1754467558799,0.72,164.55,164.53,108.83465391]
[1754467558990,0.72,164.55,164.53,114.91255846]
[1754467559391,0.72,164.55,164.53,6.07790455]
[1754467559796,9.00163644,164.56,164.53,6.07790455]
[1754467560098,0.67,164.55,164.53,6.07790455]
[1754467560407,9.00163644,164.54,164.52,0.06]
[1754467560907,0.67,164.53,164.52,0.06]
[1754467561277,0.67,164.55,164.52,0.06]
[1754467561472,8.33163644,164.56,164.52,0.78]
[1754467561674,8.33163644,164.58,164.53,9.05163644]
[1754467562002,0.67,164.61,164.57,8.33163644]
[1754467562201,21.24,164.62,164.59,8.33163644]
[1754467562609,21.24,164.62,164.6,9.05163644]
[1754467563477,21.24,164.62,164.61,15.1266015]
[1754467563691,1e-08,164.64,164.61,30.31401417]
[1754467563897,1e-08,164.64,164.63,8.33163644]
[1754467564298,1e-08,164.64,164.63,9.05163644]
[1754467565515,1e-08,164.64,164.63,15.12586349]
[1754467568202,1e-08,164.64,164.63,14.40586349]
[1754467568749,1e-08,164.64,164.62,14.40595955]
[1754467568907,0.67000001,164.64,164.62,14.40595955]
[1754467569503,0.67000001,164.64,164.62,6.07432311]
[1754467569970,0.67000001,164.64,164.62,14.40595955]
[1754467570121,1e-08,164.64,164.62,14.40595955]
[1754467570318,1e-08,164.64,164.63,8.33163644]
[1754467570720,1e-08,164.64,164.63,9.05163644]
[1754467572149,1e-08,164.64,164.63,15.12586349]
[1754467572529,1e-08,164.64,164.63,14.40586349]
[1754467575258,1e-08,164.64,164.61,0.72]
[1754467575560,0.67000001,164.64,164.63,8.33163644]
[1754467575731,0.67,164.63,164.6,82.19999999]
[1754467575936,9.00163644,164.63,164.58,14.40770886]
[1754467576237,0.67,164.62,164.58,14.40770886]
[1754467576443,9.00163644,164.62,164.58,14.40770886]
[1754467576647,0.67,164.61,164.58,6.07607242]
[1754467576851,8.33163644,164.62,164.58,6.07607242]
[1754467577157,0.67,164.6,164.58,6.07607242]
[1754467577360,0.67,164.6,164.57,14.40798085]
[1754467577530,8.33163644,164.59,164.53,0.78]
[1754467577731,9.00163644,164.58,164.53,0.06]
[1754467577931,9.00163644,164.58,164.53,8.39163644]
[1754467578159,0.67,164.57,164.53,8.39163644]
[1754467578442,8.33163644,164.56,164.53,0.06]
[1754467578637,9.00163644,164.55,164.53,0.06]
[1754467579042,0.67,164.54,164.53,0.06]
[1754467581158,9.00163644,164.54,164.53,0.06]
[1754467581543,15.07918597,164.54,164.53,0.06]
[1754467582738,19.15439967,164.54,164.53,0.06]
[1754467583658,34.26061524,164.54,164.53,0.06]
[1754467584040,36.69674324,164.54,164.53,0.06]
[1754467588359,13.07685014,164.54,164.53,0.06]
[1754467588769,4.7452137,164.54,164.53,0.06]
[1754467588966,9.00163644,164.54,164.53,0.06]
[1754467589170,30.26163644,164.54,164.53,0.06]
[1754467590169,40.4078104,164.54,164.53,0.06]
[1754467591247,36.33918597,164.54,164.53,0.06]
[1754467593168,29.59163644,164.54,164.53,0.06]
[1754467593570,21.26,164.54,164.53,0.06]
[1754467593765,29.59163644,164.54,164.53,0.06]
[1754467594187,30.31163644,164.54,164.53,0.06]
[1754467596982,21.26,164.54,164.53,0.48]
[1754467597360,21.26,164.54,164.53,1.15]
[1754467598178,21.26,164.54,164.53,0.48]
[1754467599074,21.26,164.54,164.53,1.15]
[1754467599674,21.26,164.54,164.53,0.48]
[1754467600180,30.31163644,164.54,164.53,0.48]
[1754467600860,21.98,164.54,164.53,0.48]
[1754467601684,30.31163644,164.54,164.53,0.48]
[1754467602253,36.38918597,164.54,164.53,0.48]
[1754467602975,21.98,164.54,164.53,0.48]
[1754467603280,21.26,164.54,164.53,0.48]
[1754467603972,30.31163644,164.54,164.53,0.48]
[1754467604651,36.38918597,164.54,164.53,0.48]
[1754467605768,30.31163644,164.54,164.53,0.48]
[1754467606870,29.59163644,164.54,164.53,0.48]
[1754467607262,30.31163644,164.54,164.53,0.48]
[1754467609184,21.98,164.54,164.53,0.48]
[1754467609385,28.05754953,164.54,164.53,0.48]
[1754467609679,36.38918597,164.54,164.53,0.48]
[1754467610469,38.82516597,164.54,164.53,0.48]
[1754467612583,83.99485113,164.54,164.53,0.48]
[1754467612756,57.99485113,164.54,164.53,0.48]
[1754467615992,63.10709509,164.54,164.53,0.48]
[1754467616369,57.99485113,164.54,164.53,0.48]
[1754467617282,63.10709509,164.54,164.53,0.48]
[1754467619265,41.10621557,164.53,164.52,0.06]
[1754467619473,59.27803277,164.53,164.52,0.06]
[1754467619789,65.35595169,164.53,164.52,0.06]
[1754467620090,67.79222769,164.53,164.52,0.06]
[1754467620798,67.11222769,164.53,164.52,0.06]
[1754467621092,41.79222769,164.53,164.52,0.06]
[1754467621298,36.69551652,164.53,164.52,0.06]
[1754467622167,36.69551652,164.53,164.51,0.06]
[1754467622368,51.30346959,164.52,164.51,0.06]
[1754467622680,51.98346959,164.52,164.51,0.06]
[1754467622873,77.8575976,164.52,164.51,0.06]
[1754467623394,84.68666461,164.52,164.51,0.06]
[1754467623596,15.10621557,164.51,164.49,0.06]
[1754467623895,73.15198539,164.5,164.49,0.06]
[1754467624100,63.83198539,164.5,164.49,0.06]
[1754467624273,73.83198539,164.5,164.49,0.06]
[1754467624975,62.31088655,164.5,164.49,0.06]
[1754467628172,55.50034895,164.5,164.49,0.06]
[1754467632098,57.93736695,164.5,164.49,0.06]
[1754467633173,63.03453026,164.5,164.49,0.06]
[1754467633506,31.38249694,164.5,164.49,0.77]
[1754467633673,25.30346959,164.5,164.49,0.77]
[1754467634071,25.30346959,164.5,164.49,9.10163644]
[1754467634707,25.30346959,164.5,164.49,0.77]
[1754467635047,55.50034895,164.5,164.49,0.06]
[1754467635181,81.50034895,164.5,164.49,0.06]
[1754467635386,55.50034895,164.5,164.49,0.06]
[1754467636389,60.59751226,164.5,164.49,0.06]
[1754467638218,55.50034895,164.5,164.49,0.06]
[1754467639206,26.0,164.47,164.46,0.2]
[1754467639412,59.65510603,164.47,164.46,0.2]
[1754467639617,60.33510603,164.47,164.46,0.2]
[1754467640041,75.4413216,164.47,164.46,0.2]
[1754467641003,67.10968516,164.47,164.46,0.2]
[1754467641205,81.52145779,164.47,164.46,0.2]
[1754467641500,41.10621557,164.44,164.43,0.06]
[1754467641824,74.7813216,164.44,164.43,0.06]
[1754467641999,4.06346959,164.44,164.43,0.77]
[1754467642203,21.28,164.44,164.43,0.77]
[1754467642425,25.34346959,164.44,164.43,0.77]
[1754467643132,21.28,164.44,164.43,0.77]
[1754467644114,21.28,164.44,164.43,9.10163644]
[1754467644314,21.28,164.44,164.43,0.77]
[1754467645055,33.68611754,164.44,164.43,0.06]
[1754467645206,39.76736297,164.44,164.43,0.06]
[1754467645412,40.44736297,164.44,164.43,0.06]
[1754467645821,81.55357854,164.44,164.43,0.06]
[1754467647141,59.68611754,164.44,164.43,0.73]
[1754467647442,51.3544811,164.44,164.43,0.73]
[1754467649741,51.3544811,164.44,164.43,0.06]
[1754467650648,51.3544811,164.44,164.43,0.73]
[1754467652364,25.3544811,164.44,164.43,0.73]
[1754467652651,25.3544811,164.44,164.43,9.06163644]
[1754467652856,21.28,164.44,164.43,9.06163644]
[1754467653057,21.28,164.44,164.43,15.14325171]
[1754467654165,5.0945023,164.5,164.43,30.3472899]
[1754467654324,25.3612966,164.49,164.48,8.33163644]
[1754467654526,25.3612966,164.49,164.48,9.00163644]
[1754467654749,0.03,164.51,164.48,9.00163644]
[1754467654965,21.3,164.49,164.43,103.54565346]
[1754467655167,21.3,164.49,164.48,8.33163644]
[1754467655461,21.3,164.49,164.48,9.00163644]
[1754467656155,21.3,164.49,164.48,15.08140297]
[1754467658162,0.03,164.51,164.48,15.08140297]
[1754467658365,21.33,164.51,164.5,8.33163644]
[1754467658533,25.41099789,164.51,164.5,8.33163644]
[1754467658863,25.41099789,164.51,164.5,9.00163644]
[1754467659368,21.33,164.51,164.5,9.00163644]
[1754467660083,21.33,164.51,164.5,15.08066379]
[1754467663559,20.89690541,164.51,164.5,15.08066379]
[1754467664878,20.89690541,164.51,164.49,6.07933435]
[1754467665176,20.89690541,164.51,164.5,8.33163644]
[1754467666081,21.57690541,164.51,164.46,6.08050589]
[1754467666281,8.33163644,164.48,164.43,6.14147873]
[1754467666583,8.33163644,164.45,164.43,0.06]
[1754467666948,0.68,164.44,164.43,0.06]
[1754467667148,9.01163644,164.44,164.43,0.06]
[1754467668880,15.09288187,164.44,164.43,0.06]
[1754467669090,19.16333738,164.44,164.43,0.06]
[1754467670610,26.0,164.42,164.41,0.06]
[1754467670753,79.86158761,164.42,164.41,0.06]
[1754467670952,86.62357276,164.42,164.41,0.06]
[1754467672353,101.82853565,164.42,164.39,0.06]
[1754467672560,28.4511321,164.4,164.39,0.06]
[1754467672770,32.52158761,164.4,164.39,0.06]
[1754467673080,39.28431267,164.4,164.39,0.06]
[1754467676588,41.72266767,164.4,164.39,0.06]
[1754467679102,63.04266767,164.4,164.39,0.06]
[1754467681586,41.10621557,164.38,164.37,0.2]
[1754467681817,79.82158761,164.38,164.37,0.2]
[1754467682122,80.54158761,164.38,164.37,0.2]
[1754467682321,87.84340263,164.38,164.37,0.2]
[1754467683089,82.98024061,164.38,164.37,0.2]
[1754467683812,89.06370575,164.38,164.37,0.2]
[1754467684214,89.06370575,164.38,164.36,0.06]
[1754467684411,17.41537204,164.37,164.36,0.06]
[1754467684729,15.10621557,164.35,164.34,0.06]
[1754467684896,15.10621557,164.35,164.32,0.2]
[1754467684897,41.10621557,164.34,164.32,0.2]
[1754467685100,53.82585046,164.33,164.32,0.2]
[1754467685302,54.54585046,164.33,164.32,0.2]
[1754467685931,60.63116659,164.33,164.32,0.2]
[1754467687410,66.77904359,164.33,164.32,0.2]
[1754467688642,52.71412706,164.33,164.32,0.2]
[1754467688929,66.05904359,164.33,164.32,0.2]
[1754467689429,21.32,164.33,164.32,0.91]
[1754467689848,21.32,164.33,164.32,0.2]
[1754467690009,41.47023266,164.33,164.32,0.2]
[1754467690744,27.40531613,164.33,164.32,0.2]
[1754467691105,21.32,164.33,164.32,0.91]
[1754467691821,27.40531613,164.33,164.32,0.2]
[1754467692235,21.32,164.33,164.32,0.2]
[1754467693047,21.32,164.33,164.32,0.91]
[1754467693247,21.32,164.33,164.32,0.2]
[1754467694321,28.12531613,164.33,164.32,0.2]
[1754467695752,35.81205913,164.33,164.32,0.2]
[1754467695942,27.40531613,164.33,164.32,0.2]
[1754467696107,21.32,164.33,164.32,0.2]
[1754467696837,21.32,164.33,164.32,0.91]
[1754467697218,21.32,164.33,164.32,0.2]
[1754467697758,28.12531613,164.33,164.32,0.2]
[1754467698612,21.32,164.33,164.32,0.91]
[1754467700342,21.32,164.33,164.32,0.2]
[1754467701544,27.40531613,164.33,164.32,0.2]
[1754467701739,36.47205821,164.33,164.32,0.2]
[1754467701946,35.75205821,164.33,164.32,0.2]
[1754467702656,36.47205821,164.33,164.32,0.2]
[1754467703645,54.76529921,164.33,164.32,0.2]
[1754467704432,69.87151478,164.33,164.32,0.2]
[1754467704747,47.34,164.33,164.32,0.2]
[1754467705553,47.34,164.33,164.32,0.85]
[1754467705732,47.34,164.33,164.32,0.2]
[1754467707760,61.77205821,164.33,164.32,0.2]
[1754467708132,65.82612015,164.33,164.32,0.2]
[1754467708855,66.53612015,164.33,164.32,0.2]
[1754467710765,81.64233572,164.33,164.32,0.2]
[1754467711080,84.81797611,164.33,164.32,0.2]
[1754467711559,100.03126644,164.33,164.28,0.06]
[1754467711720,34.34674208,164.29,164.28,0.06]
[1754467711924,74.84701959,164.29,164.28,0.06]
[1754467712143,75.55701959,164.29,164.28,0.06]
[1754467712346,83.08200462,164.29,164.28,0.06]
[1754467712553,89.16880235,164.29,164.28,0.06]
[1754467713127,84.08366032,164.29,164.28,0.06]
[1754467713754,15.10621557,164.28,164.26,0.06]
[1754467713957,53.9326335,164.27,164.26,0.06]
[1754467714158,54.6426335,164.27,164.26,0.06]
[1754467714335,49.55701959,164.27,164.26,0.06]
[1754467714538,34.30455839,164.27,164.26,0.06]
[1754467714734,30.49876744,164.27,164.26,0.06]
[1754467714933,4.05406194,164.27,164.26,0.71]
[1754467715247,39.84834282,164.27,164.26,0.06]
[1754467715444,55.66455839,164.27,164.26,0.06]
[1754467719157,47.31781631,164.27,164.26,0.06]
[1754467719357,55.66455839,164.27,164.26,0.06]
[1754467719892,47.31781631,164.27,164.26,0.06]
[1754467720237,9.13777464,164.27,164.26,0.71]
[1754467720384,25.43406194,164.27,164.26,0.71]
[1754467720585,25.43406194,164.27,164.26,0.06]
[1754467720586,31.52160074,164.27,164.26,0.06]
[1754467720746,39.86834282,164.27,164.26,0.06]
[1754467720952,40.57834282,164.27,164.26,0.06]
[1754467721284,60.76827109,164.27,164.26,0.06]
[1754467721520,55.68455839,164.27,164.26,0.06]
[1754467721677,47.33781631,164.27,164.26,0.06]
[1754467721880,39.86834282,164.27,164.26,0.06]
[1754467722374,44.95293204,164.27,164.26,0.06]
[1754467722896,45.66293204,164.27,164.26,0.06]
[1754467723282,55.68455839,164.27,164.26,0.06]
[1754467723876,63.20928761,164.27,164.26,0.06]
[1754467724074,58.12469839,164.27,164.26,0.06]
[1754467725102,63.21030942,164.27,164.26,0.06]
[1754467725271,58.12469839,164.27,164.26,0.06]
[1754467725793,63.2094719,164.27,164.26,0.06]
[1754467727075,58.12469839,164.27,164.26,0.06]
[1754467727280,10.0,164.25,164.24,0.1]
[1754467727485,51.65879344,164.25,164.24,0.1]
[1754467727817,52.36879344,164.25,164.24,0.1]
[1754467728392,48.4570735,164.25,164.24,0.1]
[1754467728698,58.4570735,164.25,164.24,0.1]
[1754467729421,33.45295765,164.24,164.23,0.06]
[1754467729718,38.21701959,164.24,164.23,0.06]
[1754467730131,33.30187369,164.24,164.23,0.06]
[1754467730294,36.93664074,164.24,164.23,0.06]
[1754467730493,43.02529149,164.24,164.23,0.06]
[1754467731227,48.64419643,164.24,164.23,0.06]
[1754467731395,39.92457528,164.24,164.22,0.06]
[1754467731704,15.10621557,164.22,164.21,0.06]
[1754467731901,27.50701959,164.22,164.21,0.06]
[1754467732107,28.21701959,164.22,164.21,0.06]
[1754467732698,34.30641186,164.22,164.21,0.06]
[1754467733004,36.74744586,164.22,164.21,0.06]
[1754467733405,43.20079617,164.22,164.21,0.06]
[1754467735343,42.49079617,164.22,164.21,0.06]
[1754467736102,43.16079617,164.22,164.21,0.06]
[1754467739409,42.49079617,164.22,164.21,0.06]
[1754467740277,27.3845806,164.22,164.21,0.06]
[1754467740531,6.08889778,164.24,164.21,0.78]
[1754467740710,29.74674208,164.23,164.21,0.06]
[1754467740911,27.51386063,164.22,164.21,0.06]
[1754467741103,33.66340936,164.22,164.21,0.06]
[1754467741814,39.75280163,164.22,164.21,0.06]
[1754467742347,39.75280163,164.22,164.21,1e-08]
[1754467742698,39.75280163,164.22,164.15,0.2]
[1754467742699,15.10621557,164.17,164.15,0.2]
[1754467742901,47.42,164.16,164.15,0.2]